lending/lending_fUSD_20250501
["ID","MTS","AMOUNT","RATE_DAILY","PERIOD"]
[359527982,1746094241494,-298.28971517,0.00032876,2]
[359527984,1746094241503,-176.59,0.00032877,30]
[359527986,1746094241513,-6633.98,0.00032877,2]
[359527988,1746094241522,-175.0,0.00032877,2]
[359527990,1746094241531,-650.0,0.00033,2]
[359527992,1746094241541,-1182.95,0.00033084,2]
[359527994,1746094241550,-200.0,0.00033128,2]
[359527996,1746094241559,-200.0,0.00033128,2]
[359527998,1746094241569,-200.0,0.00033128,2]
[359528000,1746094241578,-1000.0,0.00033165,2]
[359528002,1746094241587,-1291.0,0.000332,7]
[359528004,1746094241597,-150.0,0.00033309,2]
[359528006,1746094241606,-13389.73962372,0.00033328,30]
[359528008,1746094241616,-166.66,0.00033423,2]
[359528010,1746094241625,-200.0,0.00033459,2]
[359528012,1746094241635,-200.0,0.00033459,2]
[359528014,1746094241644,-200.0,0.00033459,2]
[359528016,1746094241654,-151.0,0.00033558,2]
[359528018,1746094241663,-223.0315306,0.00033558,2]
[359528020,1746094241675,-200.0,0.00033568,2]
[359528022,1746094241685,-160.0,0.000337,42]
[359528024,1746094241694,-200.0,0.00033794,2]
[359528026,1746094241704,-200.0,0.00033794,2]
[359528028,1746094241713,-200.0,0.00033794,2]
[359528030,1746094241722,-276.446715,0.00033806,2]
[359528032,1746094241732,-196.146349,0.00033806,2]
[359528034,1746094241741,-196.146347,0.00033806,2]
[359528036,1746094241751,-155.65,0.00034,2]
[359528038,1746094241760,-155.65,0.00034,2]
[359528040,1746094241770,-155.65,0.00034,2]
[359528042,1746094241783,-155.65,0.00034,2]
[359528044,1746094241792,-155.65,0.00034,2]
[359528046,1746094241801,-150.0,0.00034102,2]
[359528048,1746094241811,-200.0,0.00034132,2]
[359528050,1746094241820,-200.0,0.00034132,2]
[359528052,1746094241830,-192.09798096,0.00034132,2]
[359528054,1746094241840,-276.446715,0.00034229,2]
[359528056,1746094241849,-400.0,0.000344,120]
[359528058,1746094241858,-166.66,0.00034491,2]
[359528060,1746094241867,-150.0,0.00034548,10]
[359528062,1746094241878,-1518.96239146,0.00034562,2]
[359528064,1746094241887,-153.33264661,0.0003457,2]
[359528066,1746094241897,-1675.0,0.000346,7]
[359528083,1746094242042,-276.446715,0.00034651,2]
[359528085,1746094242052,-160.0,0.000347,45]
[359528087,1746094242062,-150.0,0.00034895,2]
[359528089,1746094242071,-2911.49,0.000349,7]
[359528091,1746094242080,-151.0,0.00034927,2]
[359528093,1746094242090,-231.28369723,0.00034927,2]
[359528095,1746094242099,-155.65,0.0003499,2]
[359528097,1746094242108,-114705.43791487,0.00035,2]
[359528099,1746094242117,-700.0,0.00035,2]
[359528102,1746094242127,-180.0,0.00035,30]
[359528103,1746094242137,-1248.56,0.00035,5]
[359528104,1746094242147,-1239.72,0.00035003,5]
[359528105,1746094242156,-1225.07,0.00035015,5]
[359528106,1746094242165,-1273.31,0.00035015,5]
[359528108,1746094242178,-934.86,0.00035068,2]
[359528109,1746094242187,-276.446715,0.00035074,2]
[359528110,1746094242197,-1244.37,0.00035166,5]
[359528111,1746094242207,-1245.35,0.00035181,5]
[359528112,1746094242217,-1182.95,0.00035348,2]
[359528114,1746094242230,-276.446715,0.00035496,2]
[359528115,1746094242239,-166.66,0.00035559,2]
[359528116,1746094242249,-1108.0071482,0.00035616,2]
[359528118,1746094242259,-150.0,0.00035688,2]
[359528120,1746094242269,-160.0,0.000357,48]
[359528122,1746094242279,-155.45524774,0.00035737,30]
[359528125,1746094242288,-150.0,0.00035737,30]
[359528127,1746094242298,-673.60517155,0.00035737,30]
[359528129,1746094242307,-1068.0,0.00036,5]
[359528131,1746094242316,-1000.0,0.00036,4]
[359528133,1746094242325,-1000.0,0.00036,4]
[359528137,1746094242335,-1000.0,0.00036,3]
[359528139,1746094242345,-1000.0,0.00036,3]
[359528142,1746094242357,-1000.0,0.00036,3]
[359528144,1746094242366,-1000.0,0.00036,5]
[359528145,1746094242375,-201.0,0.00036,30]
[359528147,1746094242385,-1000.0,0.00036,120]
[359528149,1746094242394,-193.73484558,0.00036296,2]
[359528151,1746094242404,-239.84119403,0.00036296,2]
[359528154,1746094242413,-150.0,0.00036482,2]
[359528156,1746094242426,-166.66,0.00036627,2]
[359528158,1746094242436,-152.0,0.00036674,3]
[359528161,1746094242446,-160.0,0.000367,51]
[359528164,1746094242456,-409.04,0.000368,31]
[359528167,1746094242466,-409.04,0.000368,31]
[359528170,1746094242476,-409.04,0.000368,31]
[359528172,1746094242485,-409.04,0.000368,31]
[359528175,1746094242495,-409.04,0.000368,31]
[359528176,1746094242504,-409.04,0.000368,31]
[359528179,1746094242514,-409.04,0.000368,31]
[359528180,1746094242524,-409.04,0.000368,31]
[359528183,1746094242534,-409.04,0.000368,31]
[359528185,1746094242544,-409.04,0.000368,31]
[359528187,1746094242554,-409.04,0.000368,31]
[359528190,1746094242563,-409.04,0.000368,31]
[359528191,1746094242573,-155.894,0.00036888,2]
[359528193,1746094242582,-500.0,0.00036986,30]
[359528195,1746094242592,-500.0,0.00036986,30]
[359528197,1746094242602,-1340.0,0.00036986,2]
[359528199,1746094242612,-1299.805,0.00036986,2]
[359528201,1746094242621,-797.0,0.00036986,2]
[359528203,1746094242631,-596.257,0.00036986,2]
[359528205,1746094242640,-2125.147,0.00036986,2]
[359528207,1746094242650,-1053.242,0.00036986,2]
[359528209,1746094242659,-630.791,0.00036986,2]
[359528211,1746094242669,-1492.729,0.00036986,2]
[359528213,1746094242679,-1004.0,0.00037,3]
[359528215,1746094242689,-1005.0,0.00037,3]
[359528217,1746094242698,-750.0,0.00037,2]
[359528219,1746094242708,-1518.96239146,0.00037008,2]
[359528221,1746094242718,-166.0610156,0.00037015,15]
[359528223,1746094242727,-186.86978309,0.00037017,2]
[359528225,1746094242737,-878.0,0.00037054,2]
[359528227,1746094242746,-4003.0,0.00037054,2]
[359528229,1746094242757,-201.076,0.00037054,2]
[359528231,1746094242767,-264.778,0.00037054,2]
[359528233,1746094242776,-6750.0,0.00037054,2]
[359528235,1746094242784,-885.477,0.00037054,2]
[359528237,1746094242794,-249.813,0.00037133,2]
[359528239,1746094242803,-150.0,0.00037133,2]
[359528241,1746094242813,-161.787,0.00037133,2]
[359528243,1746094242823,-155.71,0.00037133,2]
[359528245,1746094242833,-150.0,0.00037133,2]
[359528247,1746094242843,-153.488,0.00037133,2]
[359528249,1746094242852,-245.67,0.00037133,2]
[359528251,1746094242862,-253.434,0.00037133,2]
[359528253,1746094242871,-182.611,0.00037133,2]
[359528255,1746094242880,-259.559,0.00037133,2]
[359528257,1746094242890,-202.863,0.00037133,2]
[359528260,1746094242899,-154.083,0.00037133,2]
[359528262,1746094242909,-1028.932,0.00037133,2]
[359528264,1746094242918,-246.41118833,0.000372,120]
[359528266,1746094242929,-246.41118831,0.000372,120]
[359528268,1746094242938,-246.41118831,0.000372,120]
[359528269,1746094242947,-150.0,0.00037275,2]
[359528271,1746094242956,-1500.0,0.00037371,5]
[359528273,1746094242966,-1500.0,0.00037371,5]
[359528276,1746094242976,-501.24300274,0.00037371,5]
[359528278,1746094242985,-1181.36048334,0.00037371,5]
[359528280,1746094242995,-164.50740952,0.00037371,5]
[359528281,1746094243004,-645.9418004,0.00037371,5]
[359528284,1746094243014,-3975.40454564,0.00037376,7]
[359528286,1746094243023,-1182.95,0.00037612,2]
[359528288,1746094243033,-248.71531821,0.00037665,2]
[359528289,1746094243042,-166.66,0.00037695,2]
[359528291,1746094243052,-160.0,0.000377,54]
[359528293,1746094243061,-1000.0,0.00038,30]
[359528295,1746094243071,-1000.0,0.00038,5]
[359528297,1746094243080,-1000.0,0.00038,120]
[359528299,1746094243089,-150.0,0.00038068,2]
[359528301,1746094243099,-994.6,0.000382,2]
[359528303,1746094243108,-153.33264661,0.00038237,2]
[359528305,1746094243117,-221.19386701,0.00038356,2]
[359528307,1746094243127,-6277.57,0.000384,14]
[359528309,1746094243137,-2000.0,0.000384,2]
[359528312,1746094243147,-39380.61,0.000384,14]
[359528313,1746094243156,-158.256317,0.000384,14]
[359528316,1746094243167,-151.0,0.000384,14]
[359528317,1746094243180,-553.064693,0.000384,14]
[359528319,1746094243189,-553.064693,0.000384,14]
[359528321,1746094243199,-151.0,0.000384,14]
[359528323,1746094243208,-152.0,0.00038475,4]
[359528325,1746094243219,-1000.0,0.00038484,7]
[359528327,1746094243228,-1000.0,0.00038533,7]
[359528329,1746094243238,-246.41118831,0.00038579,120]
[359528332,1746094243249,-160.0,0.000387,57]
[359528334,1746094243259,-160.72490937,0.00038721,2]
[359528336,1746094243269,-150.0,0.00038778,2]
[359528338,1746094243278,-1000.0,0.00038839,7]
[359528340,1746094243287,-150.0,0.00038861,2]
[359528341,1746094243296,-1251.66,0.000389,5]
[359528343,1746094243306,-1000.0,0.00038933,2]
[359528345,1746094243315,-101602.6885213,0.00038973,2]
[359528348,1746094243325,-5607.670147,0.00038973,2]
[359528350,1746094243334,-151.0,0.00038973,14]
[359528351,1746094243344,-98865.6550676,0.00038973,2]
[359528354,1746094243356,-151.0,0.00038973,14]
[359528356,1746094243365,-151.0,0.00038973,14]
[359528358,1746094243375,-151.0,0.00038973,14]
[359528360,1746094243385,-1237.58,0.00038984,5]
[359528362,1746094243395,-1253.11,0.00038988,5]
[359528364,1746094243404,-1000.0,0.00039,30]
[359528366,1746094243414,-401.81434623,0.00039,30]
[359528368,1746094243423,-409.04,0.00039,31]
[359528370,1746094243433,-409.04,0.00039,31]
[359528372,1746094243442,-409.04,0.00039,31]
[359528374,1746094243451,-409.04,0.00039,31]
[359528376,1746094243461,-409.04,0.00039,31]
[359528378,1746094243471,-409.04,0.00039,31]
[359528380,1746094243481,-409.04,0.00039,31]
[359528382,1746094243491,-409.04,0.00039,31]
[359528384,1746094243500,-409.04,0.00039,31]
[359528386,1746094243509,-409.04,0.00039,31]
[359528388,1746094243519,-409.04,0.00039,31]
[359528390,1746094243530,-409.04,0.00039,31]
[359528392,1746094243539,-409.04,0.00039,31]
[359528394,1746094243548,-409.04,0.00039,31]
[359528396,1746094243558,-409.04,0.00039,31]
[359528398,1746094243568,-409.04,0.00039,31]
[359528400,1746094243577,-409.04,0.00039,31]
[359528402,1746094243587,-409.04,0.00039,31]
[359528404,1746094243597,-409.04,0.00039,31]
[359528406,1746094243607,-409.04,0.00039,31]
[359528408,1746094243616,-409.04,0.00039,31]
[359528410,1746094243626,-409.04,0.00039,31]
[359528412,1746094243636,-409.04,0.00039,31]
[359528414,1746094243645,-409.04,0.00039,31]
[359528416,1746094243654,-39380.61,0.00039,14]
[359528418,1746094243664,-153.00613,0.00039,14]
[359528420,1746094243673,-281.517034,0.00039,14]
[359528422,1746094243684,-281.517034,0.00039,14]
[359528424,1746094243693,-176.406723,0.00039,14]
[359528426,1746094243703,-1326.03,0.00039,2]
[359528428,1746094243713,-151.0,0.00039,14]
[359528430,1746094243722,-151.0,0.00039,14]
[359528432,1746094243732,-257.91778498,0.00039034,2]
[359528434,1746094243742,-1092.2950851,0.00039174,2]
[359528436,1746094243751,-159.0,0.0003918,7]
[359528438,1746094243761,-265.74835313,0.0003918,7]
[359528440,1746094243770,-168.611437,0.00039295,3]
[359528442,1746094243781,-181.5,0.00039396,30]
[359528444,1746094243791,-6277.57,0.000394,14]
[359528446,1746094243801,-1518.96239146,0.00039454,2]
[359528448,1746094243810,-1000.0,0.00039462,7]
[359528450,1746094243820,-150.0,0.00039654,2]
[359528452,1746094243830,-160.0,0.000397,60]
[359528454,1746094243839,-1000.0,0.00039705,7]
[359528456,1746094243849,-151.0,0.000398,14]
[359528458,1746094243859,-1182.95,0.00039875,2]
[359528460,1746094243868,-258.41065739,0.000399,2]
[359528462,1746094243877,-1340.0,0.00039986,2]
[359528464,1746094243887,-1289.0,0.00039986,2]
[359528466,1746094243896,-797.0,0.00039986,2]
[359528468,1746094243906,-580.0,0.00039986,2]
[359528470,1746094243915,-2070.0,0.00039986,2]
[359528472,1746094243925,-913.0,0.00039986,2]
[359528474,1746094243935,-549.0,0.00039986,2]
[359528476,1746094243944,-1449.0,0.00039986,2]
[359528478,1746094243953,-50000.0,0.0004,30]
[359528480,1746094243962,-1000.0,0.0004,30]
[359528482,1746094243972,-1000.0,0.0004,12]
[359528484,1746094243981,-1000.0,0.0004,11]
[359528486,1746094243990,-1000.0,0.0004,10]
[359528488,1746094244000,-1000.0,0.0004,9]
[359528490,1746094244009,-500.0,0.0004,30]
[359528492,1746094244018,-500.0,0.0004,4]
[359528494,1746094244027,-157.6,0.0004,30]
[359528496,1746094244036,-39380.61,0.0004,14]
[359528498,1746094244046,-1000.0,0.0004,120]
[359528500,1746094244055,-1326.03,0.0004,2]
[359528502,1746094244064,-1000.0,0.00040049,7]
[359528504,1746094244073,-1000.0,0.00040049,7]
[359528506,1746094244083,-1000.0,0.00040049,7]
[359528508,1746094244092,-878.0,0.00040054,2]
[359528509,1746094244102,-4003.0,0.00040054,2]
[359528511,1746094244111,-153.0,0.00040054,2]
[359528514,1746094244122,-153.0,0.00040054,2]
[359528515,1746094244133,-6750.0,0.00040054,2]
[359528518,1746094244143,-876.0,0.00040054,2]
[359528519,1746094244152,-150.0,0.00040133,2]
[359528522,1746094244162,-923.0,0.00040133,2]
[359528523,1746094244172,-7417.653597,0.00040165,2]
[359528525,1746094244183,-1000.0,0.00040186,7]
[359528541,1746094244320,-200.0,0.00040192,13]
[359528543,1746094244330,-200.0,0.00040192,13]
[359528544,1746094244340,-200.0,0.00040192,13]
[359528546,1746094244350,-346.0,0.00040192,13]
[359528548,1746094244360,-500.0,0.00040192,60]
[359528550,1746094244370,-500.0,0.00040192,60]
[359528552,1746094244380,-500.0,0.00040192,60]
[359528554,1746094244390,-500.0,0.00040192,60]
[359528556,1746094244399,-500.0,0.00040192,60]
[359528558,1746094244409,-613.0,0.00040192,60]
[359528560,1746094244419,-1000.0,0.0004026,7]
[359528562,1746094244430,-281.740845,0.00040272,14]
[359528564,1746094244439,-151.0,0.00040272,14]
[359528566,1746094244448,-151.0,0.00040272,14]
[359528568,1746094244458,-215.778034,0.00040272,14]
[359528570,1746094244467,-152.0,0.00040277,5]
[359528572,1746094244476,-6277.57,0.000403,14]
[359528574,1746094244485,-152233.22658013,0.00040334,7]
[359528576,1746094244495,-151.0,0.00040334,14]
[359528578,1746094244504,-251.924546,0.00040334,14]
[359528580,1746094244513,-251.924546,0.00040334,14]
[359528582,1746094244523,-151.0,0.00040334,14]
[359528584,1746094244532,-151.0,0.00040334,14]
[359528586,1746094244542,-202.148189,0.00040334,14]
[359528588,1746094244551,-151.0,0.00040334,14]
[359528590,1746094244561,-151.0,0.00040334,14]
[359528592,1746094244570,-510.098618,0.00040334,14]
[359528594,1746094244579,-510.098618,0.00040334,14]
[359528596,1746094244588,-151.0,0.00040334,14]
[359528598,1746094244597,-248.108181,0.00040334,14]
[359528600,1746094244607,-248.108181,0.00040334,14]
[359528601,1746094244616,-151.0,0.00040334,14]
[359528602,1746094244625,-177.036285,0.00040342,14]
[359528603,1746094244635,-188.73458,0.00040342,14]
[359528604,1746094244644,-500.0,0.0004035,10]
[359528605,1746094244653,-151.0,0.00040351,14]
[359528606,1746094244663,-251.924546,0.00040351,14]
[359528607,1746094244672,-251.924546,0.00040351,14]
[359528608,1746094244682,-151.0,0.00040351,14]
[359528609,1746094244692,-151.0,0.00040351,14]
[359528610,1746094244702,-510.098618,0.00040351,14]
[359528611,1746094244712,-510.098618,0.00040351,14]
[359528612,1746094244722,-155.466797,0.00040351,14]
[359528613,1746094244731,-248.108181,0.00040351,14]
[359528614,1746094244740,-248.108181,0.00040351,14]
[359528615,1746094244750,-151.0,0.00040351,14]
[359528617,1746094244759,-2763.34317591,0.00040369,7]
[359528619,1746094244768,-4323.74313677,0.00040369,7]
[359528621,1746094244777,-267.46074303,0.00040403,2]
[359528623,1746094244786,-150.0,0.00040423,2]
[359528625,1746094244795,-150.0,0.00040447,2]
[359528627,1746094244805,-150.0,0.00040476,2]
[359528629,1746094244814,-500.0,0.000405,30]
[359528631,1746094244823,-500.0,0.00040521,5]
[359528633,1746094244832,-39380.61,0.000406,14]
[359528635,1746094244842,-151.0,0.000406,14]
[359528637,1746094244851,-553.064693,0.000406,14]
[359528639,1746094244861,-553.064693,0.000406,14]
[359528641,1746094244870,-151.0,0.000406,14]
[359528643,1746094244879,-150.0,0.00040649,2]
[359528645,1746094244889,-1333.0,0.00040658,120]
[359528647,1746094244900,-150.0,0.00040699,2]
[359528649,1746094244909,-160.0,0.000407,63]
[359528651,1746094244918,-150.0,0.00040723,2]
[359528653,1746094244928,-150.0,0.00040729,2]
[359528654,1746094244938,-150.0,0.00040738,2]
[359528657,1746094244948,-150.0,0.00040742,2]
[359528659,1746094244957,-500.0,0.00040799,10]
[359528661,1746094244967,-1002.37253846,0.00040806,7]
[359528662,1746094244976,-150.0,0.00040874,2]
[359528664,1746094244986,-299.43261,0.00040888,30]
[359528666,1746094244995,-998.1087,0.00040888,7]
[359528668,1746094245006,-150.0,0.00040941,2]
[359528671,1746094245016,-150.0,0.00040954,2]
[359528672,1746094245025,-500.0,0.00040999,10]
[359528674,1746094245034,-50000.0,0.00041,31]
[359528676,1746094245043,-1000.0,0.00041,30]
[359528678,1746094245052,-500.0,0.00041,30]
[359528680,1746094245061,-6277.57,0.00041,14]
[359528683,1746094245072,-400.0,0.00041,12]
[359528684,1746094245082,-1326.04254589,0.00041,2]
[359528686,1746094245091,-150.0,0.00041023,2]
[359528688,1746094245100,-1000.0,0.00041031,7]
[359528690,1746094245109,-150.0,0.00041068,2]
[359528692,1746094245119,-150.5,0.0004107,120]
[359528694,1746094245128,-212.33,0.0004107,120]
[359528696,1746094245137,-150.5,0.0004107,120]
[359528698,1746094245147,-150.5,0.0004108,120]
[359528700,1746094245156,-150.5,0.0004108,120]
[359528702,1746094245166,-150.5,0.0004108,120]
[359528704,1746094245179,-299.43261,0.00041088,30]
[359528706,1746094245188,-150.5,0.0004109,120]
[359528709,1746094245198,-150.5,0.0004109,120]
[359528711,1746094245207,-150.5,0.0004109,120]
[359528713,1746094245217,-254.31900115,0.00041095,120]
[359528714,1746094245227,-151.0,0.00041096,2]
[359528716,1746094245236,-200.0,0.00041096,10]
[359528718,1746094245245,-487.0,0.00041096,14]
[359528719,1746094245254,-500.0,0.00041096,30]
[359528721,1746094245263,-500.0,0.00041096,30]
[359528723,1746094245272,-500.0,0.00041096,30]
[359528725,1746094245281,-500.0,0.00041096,30]
[359528727,1746094245291,-500.0,0.00041096,30]
[359528729,1746094245300,-500.0,0.00041096,30]
[359528731,1746094245309,-500.0,0.00041096,30]
[359528733,1746094245318,-154.0,0.00041096,30]
[359528735,1746094245327,-1065.32006898,0.000411,10]
[359528736,1746094245336,-2000.0,0.000411,2]
[359528738,1746094245345,-2000.0,0.000411,2]
[359528740,1746094245355,-1000.0,0.00041123,14]
[359528742,1746094245364,-150.0,0.00041129,2]
[359528744,1746094245373,-1000.0,0.00041134,14]
[359528746,1746094245382,-39380.61,0.000412,60]
[359528748,1746094245392,-281.517034,0.000412,14]
[359528750,1746094245402,-281.517034,0.000412,14]
[359528752,1746094245412,-151.0,0.000412,14]
[359528754,1746094245422,-151.0,0.000412,14]
[359528756,1746094245434,-151.0,0.000412,14]
[359528758,1746094245443,-151.0,0.000412,14]
[359528760,1746094245454,-151.0,0.000412,14]
[359528762,1746094245465,-151.0,0.000412,14]
[359528764,1746094245474,-150.0,0.00041205,2]
[359528765,1746094245486,-150.0,0.00041221,2]
[359528767,1746094245495,-150.0,0.00041223,2]
[359528769,1746094245505,-150.0,0.00041233,2]
[359528771,1746094245514,-150.0,0.0004124,2]
[359528773,1746094245524,-150.0,0.0004124,2]
[359528775,1746094245533,-500.0,0.0004125,30]
[359528777,1746094245543,-150.0,0.0004125,2]
[359528779,1746094245552,-150.0,0.00041274,2]
[359528781,1746094245562,-299.43261,0.00041288,30]
[359528783,1746094245571,-186.86978309,0.00041294,2]
[359528785,1746094245580,-409.04,0.000413,31]
[359528787,1746094245590,-409.04,0.000413,31]
[359528789,1746094245599,-409.04,0.000413,31]
[359528791,1746094245608,-409.04,0.000413,31]
[359528792,1746094245618,-409.04,0.000413,31]
[359528794,1746094245628,-409.04,0.000413,31]
[359528796,1746094245637,-409.04,0.000413,31]
[359528798,1746094245646,-409.04,0.000413,31]
[359528800,1746094245656,-409.04,0.000413,31]
[359528802,1746094245666,-409.04,0.000413,31]
[359528804,1746094245675,-409.04,0.000413,31]
[359528806,1746094245685,-409.04,0.000413,31]
[359528808,1746094245694,-409.04,0.000413,31]
[359528810,1746094245704,-409.04,0.000413,31]
[359528812,1746094245713,-409.04,0.000413,31]
[359528814,1746094245723,-409.04,0.000413,31]
[359528816,1746094245732,-409.04,0.000413,31]
[359528818,1746094245742,-409.04,0.000413,31]
[359528820,1746094245751,-409.04,0.000413,31]
[359528822,1746094245761,-409.04,0.000413,31]
[359528824,1746094245773,-409.04,0.000413,31]
[359528826,1746094245782,-409.04,0.000413,31]
[359528828,1746094245792,-409.04,0.000413,31]
[359528830,1746094245801,-409.04,0.000413,31]
[359528831,1746094245811,-150.0,0.00041325,2]
[359528833,1746094245820,-150.0,0.00041342,2]
[359528835,1746094245830,-150.0,0.00041356,2]
[359528837,1746094245839,-150.0,0.00041365,2]
[359528839,1746094245848,-150.0,0.00041375,2]
[359528841,1746094245857,-764.0,0.000414,30]
[359528843,1746094245867,-236.0,0.000414,30]
[359528845,1746094245877,-500.0,0.000414,10]
[359528847,1746094245886,-150.0,0.00041413,2]
[359528849,1746094245895,-150.0,0.00041434,2]
[359528851,1746094245904,-1494.26,0.00041443,30]
[359528853,1746094245913,-801.26,0.00041443,30]
[359528855,1746094245922,-801.26,0.00041443,30]
[359528857,1746094245931,-801.26,0.00041443,30]
[359528859,1746094245941,-801.26,0.00041443,30]
[359528861,1746094245950,-801.26,0.00041443,30]
[359528862,1746094245959,-873.92,0.00041443,30]
[359528864,1746094245970,-801.26,0.00041443,30]
[359528866,1746094245979,-455.93,0.00041443,30]
[359528868,1746094245988,-801.26,0.00041443,30]
[359528870,1746094245997,-801.26,0.00041443,30]
[359528872,1746094246006,-455.93,0.00041443,30]
[359528874,1746094246015,-455.93,0.00041443,30]
[359528876,1746094246024,-801.26,0.00041443,30]
[359528878,1746094246033,-801.26,0.00041443,30]
[359528880,1746094246042,-455.93,0.00041443,30]
[359528882,1746094246052,-801.26,0.00041443,30]
[359528884,1746094246061,-455.93,0.00041443,30]
[359528886,1746094246071,-1625.7,0.00041443,30]
[359528888,1746094246080,-455.93,0.00041443,30]
[359528890,1746094246089,-150.0,0.00041479,2]
[359528892,1746094246099,-150.0,0.0004148,2]
[359528894,1746094246108,-299.43261,0.00041488,30]
[359528896,1746094246117,-500.0,0.000415,30]
[359528898,1746094246127,-150.0,0.00041507,2]
[359528900,1746094246136,-150.0,0.00041509,2]
[359528902,1746094246144,-150.0,0.00041534,2]
[359528904,1746094246153,-150.0,0.00041539,2]
[359528906,1746094246163,-150.0,0.0004154,2]
[359528908,1746094246173,-2382.0,0.00041604,10]
[359528910,1746094246184,-150.0,0.00041616,2]
[359528912,1746094246193,-151.0,0.00041644,2]
[359528914,1746094246205,-150.0,0.00041659,2]
[359528916,1746094246215,-150.0,0.00041662,2]
[359528918,1746094246224,-150.0,0.0004167,2]
[359528920,1746094246234,-150.0,0.00041684,2]
[359528922,1746094246244,-299.43261,0.00041688,30]
[359528923,1746094246256,-160.0,0.000417,66]
[359528939,1746094246392,-1021.46877761,0.000417,120]
[359528941,1746094246403,-6277.57,0.000417,14]
[359528943,1746094246413,-150.0,0.00041736,2]
[359528945,1746094246422,-150.0,0.00041747,2]
[359528947,1746094246433,-500.0,0.0004175,45]
[359528949,1746094246443,-150.0,0.00041753,2]
[359528951,1746094246453,-500.0,0.00041759,60]
[359528953,1746094246462,-500.0,0.00041759,60]
[359528955,1746094246472,-277.35679052,0.00041772,2]
[359528957,1746094246481,-151.0,0.000418,14]
[359528959,1746094246491,-39380.61,0.000418,60]
[359528961,1746094246501,-308.216953,0.000418,14]
[359528963,1746094246510,-308.216953,0.000418,14]
[359528964,1746094246520,-151.0,0.000418,14]
[359528966,1746094246530,-220.216538,0.000418,14]
[359528968,1746094246539,-220.216538,0.000418,14]
[359528971,1746094246549,-246.528525,0.000418,14]
[359528973,1746094246559,-218.97,0.00041871,120]
[359528974,1746094246568,-170.3147408,0.00041871,120]
[359528976,1746094246577,-173.84707053,0.00041871,120]
[359528978,1746094246587,-173.84707053,0.00041871,120]
[359528980,1746094246596,-173.84707053,0.00041871,120]
[359528982,1746094246605,-173.84707053,0.00041871,120]
[359528984,1746094246614,-173.84707053,0.00041871,120]
[359528986,1746094246623,-173.84,0.00041871,120]
[359528988,1746094246632,-152.11618671,0.00041871,120]
[359528990,1746094246642,-152.11618671,0.00041871,120]
[359528992,1746094246651,-152.11618671,0.00041871,120]
[359528994,1746094246660,-152.11618671,0.00041871,120]
[359528996,1746094246670,-152.11618671,0.00041871,120]
[359528998,1746094246679,-152.11618671,0.00041871,120]